Cogmind - Beta 9.1 @@@ ROGUE MODE // 2019.11.11 @ 12:35:11 Player: MrPainting Result: Self-destructed Performance ------------- Evolutions (2) 1000 Regions Visited (5) 1000 Robots Destroyed (31) 155 Value Destroyed (637) 637 Prototype IDs (1) 20 Alien Tech Used (0) 0 Bonus (0) 0 TOTAL SCORE: 2812 Bonus ------- None Cogmind --------- Core Integrity 550/550 Matter 273/300 Energy 265/265 System Corruption 1% Temperature Cool (0) Location -8/Materials Parts ------- Power (1) Improved Ion Engine Propulsion (4) Improved Hover Unit Improved Hover Unit Improved Hover Unit Utility (4) Advanced Targeting Computer Advanced Targeting Computer Improved Propulsion Shielding Weapon (2) Heavy Assault Rifle Rocket Launcher Inventory (4) Light Nuclear Core Transmission Jammer Improved Propulsion Shielding Light Assault Rifle Peak State ------------ Power Improved Ion Engine Propulsion Improved Hover Unit Improved Hover Unit Improved Hover Unit Utility Advanced Targeting Computer Advanced Targeting Computer Improved Propulsion Shielding Weapon Heavy Assault Rifle Rocket Launcher Inventory Light Nuclear Core Transmission Jammer Improved Propulsion Shielding Light Assault Rifle [Rating: 22] Favorites ----------- Power Ion Engine Engine Ion Engine Propulsion Aluminum Leg Treads Light Treads Leg Aluminum Leg Hover Unit Improved Hover Unit Utility Small Storage Unit Storage Small Storage Unit Processor Improved Targeting Computer Protection Improved Propulsion Shielding Weapon Assault Rifle Ballistic Gun Assault Rifle Launcher Grenade Launcher Build | -11 -10 -10 -9 -9 -8 ------- Run | Scr Mat Min Mat Min Mat Slots Evolved 4 | . . . 2 . 2 Power . | . . . . . . Propulsion 2 | . . . 1 . 1 Utility 2 | . . . 1 . 1 Weapon . | . . . . . . Parts Attached 30 | 6 . 3 17 4 . Power 4 | 1 . . 3 . . Engine 4 | 1 . . 3 . . Core . | . . . . . . Reactor . | . . . . . . Propulsion 7 | 2 . 1 4 . . Treads 1 | . . . 1 . . Leg 3 | 2 . 1 . . . Wheel . | . . . . . . Hover 3 | . . . 3 . . Flight . | . . . . . . Utility 6 | 1 . . 5 . . Device . | . . . . . . Storage 1 | 1 . . . . . Processor 4 | . . . 4 . . Hackware . | . . . . . . Protection 1 | . . . 1 . . Artifact . | . . . . . . Weapon 13 | 2 . 2 5 4 . Energy Gun . | . . . . . . Energy Cannon . | . . . . . . Ballistic Gun 10 | 2 . 1 5 2 . Ballistic Cannon . | . . . . . . Launcher 3 | . . 1 . 2 . Special Weapon . | . . . . . . Impact Weapon . | . . . . . . Slashing Weapon . | . . . . . . Piercing Weapon . | . . . . . . Special Melee Weapon . | . . . . . . Unidentified Prototypes 1 | . . . 1 . . Parts Lost 6 | . . . 6 . . Power 1 | . . . 1 . . Propulsion 2 | . . . 2 . . Utility . | . . . . . . Weapon 3 | . . . 3 . . Highest Loss Streak 4 | . . . 4 . . Average Slot Usage (%) 82 | . 85 85 79 100 81 Engine 12 | . 14 14 10 11 9 Leg 18 | . 28 28 11 . . Hover 2 | . . . 1 33 27 Storage 11 | . 14 14 10 . . Processor 11 | . . . 21 22 18 Ballistic Gun 21 | . 28 21 20 12 9 Launcher 3 | . . 6 . 9 9 Naked Turns . | . . . . . . Heaviest Build 16 | 13 13 14 16 16 16 Greatest Support 24 | 20 20 20 24 24 24 Greatest Overweight (x) 4 | 1 . . 4 . . Average Overweight (x) . | . . . . . . Largest Inventory Capacity 6 | 6 6 6 6 4 4 Average Capacity 5 | 4 6 6 5 4 4 Most Carried 5 | 2 1 3 5 4 4 Average Carried 2 | . . 2 3 4 4 Final Capacity 6 | 6 6 6 4 4 4 Final Carried 4 | . 1 3 4 4 4 Class Distribution -------------------- 100% | Mutant Dominant Class ---------------- Mutant | -10/Materials Mutant | -10/Mines Mutant | -9/Materials Mutant | -9/Mines Mutant | -8/Materials Resources | -11 -10 -10 -9 -9 -8 ----------- Run | Scr Mat Min Mat Min Mat Matter Collected 871 | 230 . 167 390 84 . Remotely . | . . . . . . Salvage Created 799 | . . 113 670 16 . Parts 71 | . . 9 60 2 . Haulers Intercepted . | . . . . . . Recyclers Shooed . | . . . . . . Parts Field Recycled . | . . . . . . Retrieved Matter . | . . . . . . Parts Self-Destructed . | . . . . . . Prevented . | . . . . . . Kills | -11 -10 -10 -9 -9 -8 ------- Run | Scr Mat Min Mat Min Mat Combat Hostiles Destroyed 25 | . . 5 17 3 . Guns 20 | . . 3 17 . . AOE 5 | . . 2 . 3 . Classes Destroyed 6 | . . 2 4 . . Worker 1 | . . . 1 . . Recycler 1 | . . . 1 . . Watcher 4 | . . . 4 . . Swarmer 16 | . . 3 10 3 . Grunt 5 | . . 2 3 . . Sentry 4 | . . . 4 . . Best Kill Streak 4 | . . 3 4 3 . Combat Bots Only 4 | . . 3 4 3 . Max Kills in Single Turn 3 | . . 2 2 3 . Gunslinging 1 | . . . 1 . . Exploded 3 | . . 2 . 3 . Melee . | . . . . . . Uniques/NPCs Destroyed . | . . . . . . Combat | -11 -10 -10 -9 -9 -8 -------- Run | Scr Mat Min Mat Min Mat Damage Taken 1227 | . . 325 882 20 . Core 285 | . . 47 238 . . Absorbed by Shields . | . . . . . . Core Remaining (%) 73 | 100 . 81 . 40 . Volleys Fired 81 | . 4 15 61 1 . Largest 2 | . 2 2 2 1 . Hottest 50 | . 40 50 43 33 . Shots Fired 146 | . 8 28 109 1 . Gun 144 | . 8 27 109 . . Cannon . | . . . . . . Launcher 2 | . . 1 . 1 . Special . | . . . . . . Kinetic 144 | . 8 27 109 . . Thermal . | . . . . . . Explosive 2 | . . 1 . 1 . Electromagnetic . | . . . . . . Robot Hit Streak 17 | . 2 5 17 10 . Robot Miss Streak 5 | . 2 5 3 . . Penetration Max . | . . . . . . Secondary Targets 2 | . . . 2 . . Max Gunslinging Chain 1 | . . . 1 . . Shots Hit Robots 101 | . 3 17 80 1 . Core Hits 45 | . 1 8 33 3 . Critical Hits . | . . . . . . Critical Kills . | . . . . . . Critical Parts Destroyed . | . . . . . . Melee Attacks . | . . . . . . Impact . | . . . . . . Slashing . | . . . . . . Piercing . | . . . . . . Sneak Attacks . | . . . . . . Combat Hostiles . | . . . . . . Follow-up Attacks . | . . . . . . Damage Inflicted 1777 | . 45 297 1267 168 . Guns 1292 | . 45 166 1081 . . Cannons . | . . . . . . Explosions 485 | . . 131 186 168 . Melee . | . . . . . . Ramming . | . . . . . . Kinetic 1292 | . 45 166 1081 . . Thermal 49 | . . . . 49 . Explosive 436 | . . 131 186 119 . Electromagnetic . | . . . . . . Impact . | . . . . . . Slashing . | . . . . . . Piercing . | . . . . . . Highest Corruption 1 | . . . . . 1 Average Corruption 1 | . . . . . 1 Corruption Purged . | . . . . . . Overload Shots . | . . . . . . Overflow Damage 84 | . . . 84 . . Projectiles . | . . . . . . Explosions 84 | . . . 84 . . Melee . | . . . . . . Knockbacks . | . . . . . . Impact . | . . . . . . Kinetic . | . . . . . . Secondary . | . . . . . . Self-Inflicted Damage 98 | . . 7 71 20 . Shots 4 | . . 1 2 1 . Rammed . | . . . . . . Targets Rammed . | . . . . . . Kicked . | . . . . . . Crushed . | . . . . . . Highest Temperature 9 | . . 2 8 9 . Average Temperature 2 | . . 2 2 7 . Received Heat Transfer 336 | . . 96 240 . . Siege Activations . | . . . . . . Robots Corrupted . | . . . . . . Combat Hostiles . | . . . . . . Parts Fried . | . . . . . . Impact Corruptions . | . . . . . . Robots Melted . | . . . . . . Combat Hostiles . | . . . . . . Parts Melted . | . . . . . . Heat Transferred 50 | . . . . 50 . Parts Sabotaged . | . . . . . . Parts Stolen . | . . . . . . Parts Stripped . | . . . . . . Power Chain Reactions . | . . . . . . Missiles Intercepted . | . . . . . . Alert | -11 -10 -10 -9 -9 -8 ------- Run | Scr Mat Min Mat Min Mat Peak Influence 352 | . 15 75 352 163 63 Average Influence 110 | . 12 24 199 160 63 Maximum Alert Level 1 | . . . 1 . . Low Security (%) 77 | . . . . . . Level 1 22 | . . . . . . Level 2 . | . . . . . . Level 3 . | . . . . . . Level 4 . | . . . . . . Level 5 . | . . . . . . High Security . | . . . . . . Max Security . | . . . . . . Squads Dispatched . | . . . . . . Investigation . | . . . . . . Extermination . | . . . . . . Reinforcement . | . . . . . . Assault . | . . . . . . Garrison . | . . . . . . Intercept . | . . . . . . Construction Impeded . | . . . . . . Haulers Reinforced . | . . . . . . Stealth | -11 -10 -10 -9 -9 -8 --------- Run | Scr Mat Min Mat Min Mat Distress Signals . | . . . . . . Communications Jammed . | . . . . . . Distress Signals . | . . . . . . Times Spotted 37 | . 4 5 25 3 . Peak Tracking Total 4 | . 3 3 4 3 . Tactical Retreats 2 | . . . 2 . . Traps | -11 -10 -10 -9 -9 -8 ------- Run | Scr Mat Min Mat Min Mat Traps Triggered 1 | . . . . . 1 Indirectly . | . . . . . . Trap Hack Attempts . | . . . . . . Triggered . | . . . . . . Disarmed . | . . . . . . Reprogrammed . | . . . . . . Reused . | . . . . . . Traps Extracted . | . . . . . . Installed . | . . . . . . Triggered . | . . . . . . Machines | -11 -10 -10 -9 -9 -8 ---------- Run | Scr Mat Min Mat Min Mat Machines Disabled 3 | . . . 2 1 . Max in Single Turn 2 | . . . 2 1 . Machines Sabotaged . | . . . . . . Garrisons Compromised . | . . . . . . Overloaded Fab Kills . | . . . . . . Fab Network Shutdowns . | . . . . . . Hacking | -11 -10 -10 -9 -9 -8 --------- Run | Scr Mat Min Mat Min Mat Machines Accessed . | . . . . . . Terminals . | . . . . . . Fabricators . | . . . . . . Repair Stations . | . . . . . . Recycling Units . | . . . . . . Scanalyzers . | . . . . . . Garrison Access . | . . . . . . Total Hacks . | . . . . . . Successful . | . . . . . . Failed . | . . . . . . Catastrophic . | . . . . . . Database Lockouts . | . . . . . . Manual . | . . . . . . Terminals . | . . . . . . Fabricators . | . . . . . . Repair Stations . | . . . . . . Recycling Units . | . . . . . . Scanalyzers . | . . . . . . Garrison Access . | . . . . . . Terminal Hacks . | . . . . . . Fabricator Hacks . | . . . . . . Repair Station Hacks . | . . . . . . Recycling Unit Hacks . | . . . . . . Scanalyzer . | . . . . . . Garrison Access Hacks . | . . . . . . Unauthorized Hacks . | . . . . . . Terminals . | . . . . . . Fabricators . | . . . . . . Repair Stations . | . . . . . . Recycling Units . | . . . . . . Scanalyzers . | . . . . . . Garrison Access . | . . . . . . Data Cores Recovered . | . . . . . . Used . | . . . . . . Hacking Detections . | . . . . . . Full Trace Events . | . . . . . . Feedback Events . | . . . . . . Feedback Blocked . | . . . . . . Robot Schematics Acquired . | . . . . . . Robots Built . | . . . . . . Matter . | . . . . . . Time . | . . . . . . Total Robot Build Rating . | . . . . . . Part Schematics Acquired . | . . . . . . Parts Built . | . . . . . . Matter . | . . . . . . Time . | . . . . . . Total Part Build Rating . | . . . . . . Parts Repaired . | . . . . . . Time . | . . . . . . Parts Recycled . | . . . . . . Recycled Matter . | . . . . . . Retrieved Matter . | . . . . . . Retrieved Components . | . . . . . . Parts Scanalyzed . | . . . . . . Part Schematics Acquired . | . . . . . . Parts Damaged . | . . . . . . Bothacking | -11 -10 -10 -9 -9 -8 ------------ Run | Scr Mat Min Mat Min Mat Used RIF Installer . | . . . . . . Robots Hacked . | . . . . . . Non-combat . | . . . . . . Combat . | . . . . . . Robot Hacks Applied . | . . . . . . Relay Couplers Released . | . . . . . . Robots Rewired . | . . . . . . Allies Hacked . | . . . . . . Hacks Repelled . | . . . . . . Allies | -11 -10 -10 -9 -9 -8 -------- Run | Scr Mat Min Mat Min Mat Total Allies . | . . . . . . Largest Group . | . . . . . . Highest-Rated Group . | . . . . . . Highest-Rated Ally . | . . . . . . Total Orders . | . . . . . . Ally Attacks . | . . . . . . Total Damage . | . . . . . . Kills . | . . . . . . Allies Corrupted . | . . . . . . Allies Melted . | . . . . . . Intel | -11 -10 -10 -9 -9 -8 ------- Run | Scr Mat Min Mat Min Mat Robot Analysis Total . | . . . . . . Derelict Logs Recovered 2 | . . 1 . 1 . Drone Launches . | . . . . . . Drone Recoveries . | . . . . . . Exploration | -11 -10 -10 -9 -9 -8 ------------- Run | Scr Mat Min Mat Min Mat Turns Passed 1832 | 57 86 732 852 78 27 Spaces Moved 1337 | 43 50 561 498 135 50 Core 63 | 9 . . 54 . . Treads 87 | . . . 87 . . Legs 934 | 34 50 561 289 . . Wheels . | . . . . . . Hover 253 | . . . 68 135 50 Flight . | . . . . . . Fastest Speed 50 | 50 120 120 52 52 52 Average Speed 113 | 110 120 120 127 52 52 Slowest Speed 250 | 120 120 120 250 52 52 Overloaded Moves . | . . . . . . Propulsion Burnouts . | . . . . . . Robots Hopped . | . . . . . . Cave-ins Triggered . | . . . . . . Exploration Rate (%) 34 | 5 16 92 45 39 8 Regions Visited 5 Branch Regions 2 Pre-discovered Areas 1 | . . 1 . . . Known Exits Taken . | . . . . . . Unknown Exits Taken 5 | 1 1 1 1 1 . Scrap Searched 4 | . . 2 . 2 . Spaces Dug . | . . . . . . Terrain Destroyed 53 | . . 9 34 10 . Melee . | . . . . . . Projectile . | . . . . . . AOE 53 | . . 9 34 10 . Actions | -11 -10 -10 -9 -9 -8 --------- Run | Scr Mat Min Mat Min Mat Total 1501 | 50 68 591 602 140 50 Wait 41 | . 14 10 17 . . Move 1332 | 42 49 560 497 134 50 Hop . | . . . . . . Pick Up 8 | 2 1 2 3 . . Fast Attach 15 | 4 . . 11 . . Attach 3 | 2 . . 1 . . Detach 1 | . . . 1 . . Swap 12 | . . 3 5 4 . Drop 8 | . . 1 6 1 . Fire 81 | . 4 15 61 1 . Melee . | . . . . . . Ram . | . . . . . . Kick . | . . . . . . Crush . | . . . . . . Escape Stasis . | . . . . . . Rewire . | . . . . . . Trap . | . . . . . . Miscellaneous . | . . . . . . Route ------- -11/Scrapyard -10/Materials -10/Mines (discovered 2 exits: *Mat x2) -9/Materials -9/Mines -8/Materials (discovered 1 exit: Fac) History --------- Turn | Location | Event 11 | -11/Scrapyard | Discovered new exit (range 15) 58 | -11/Scrapyard | Entered Materials 120 | -10/Materials | Discovered new exit (range 15) 144 | -10/Materials | Entered Mines 164 | -10/Mines | Received a Rocket Launcher from a helpful Derelict 257 | -10/Mines | Learned Materials terminal intel 306 | -10/Mines | Build established: Mutant 343 | -10/Mines | Discovered new exit (range 4) 498 | -10/Mines | Discovered new exit (range 9) 499 | -10/Mines | Learned location of Storage (-9) 876 | -10/Mines | Entered Materials 876 | -9/Materials | Evolved 2 slots: Propulsion x1, Utility x1 877 | -9/Materials | Loaded intel: 12 terminal locations 1400 | -9/Materials | Lost 4 parts (1p1n2w) 1505 | -9/Materials | Core integrity fell below 50% 1663 | -9/Materials | Discovered new exit (range 12) 1728 | -9/Materials | Entered Mines 1737 | -9/Mines | Assembled infested the area 1742 | -9/Mines | Assisted by a Guerilla fighting off Assembled 1758 | -9/Mines | Found a hidden stash of uninstalled traps 1791 | -9/Mines | Discovered new exit (range 14) 1803 | -9/Mines | Learned 4 Materials zone layouts 1806 | -9/Mines | Entered Materials 1806 | -8/Materials | Evolved 2 slots: Propulsion x1, Utility x1 1807 | -8/Materials | Identified exit to Factory 1833 | -8/Materials | Self-destructed Last Messages --------------- 01794_ Found 35 Matter. 01794_ Found Sml. Storage Unit. 01794_ Found Shotgun. 01794_ Found Lrg. Storage Unit. 01797_ K-01 Serf collects debris. 01798_ U-05 Engineer lays Concrete. 01800_ K-01 Serf collects debris. 01800_ U-05 Engineer lays Concrete. 01802_ U-05 Engineer builds a Wall. 01803_ Acquired derelict log, extracted data. Data stored: Materials zone layouts (x4). 01804_ U-05 Engineer builds a Wall. 01806_ Acquired 36 matter. PARAMETERS=PROPULSION_1,UTILITY_1 LOCATION=UNKNOWN GOAL=ESCAPE Loading 4 Materials zones... 01832_ Triggered Shock Trap. 01832_ The floor emits a surge of raw power. 01832_ System corrupted (+1). Map ----- +----------------------------------------------------+ | | | ????????????????????#########??????? | | ???????##########???# T #??????? | | ???????? #???# """ #??????? | | ???????#""" #???# """ #??????? | | ???????#""" #???# """ #??????? | | ???????#""" #???# / #??????? | | ???????# #???####+########### | | ???????#""" ##### # | | ???????#""" + # | | ???????#""" ## # | | ???????# ## ############# # | | ?#######+###+##### #???????????????# | | # ! # #### ###?????????????? | | # # +??????????? | | #" """ + ######???????????????? | | #T """ # #????????????????????? | | #" """ # #????????????????????? | | # # #????????????????????? | | ######## ########?????????????? | | ???????# # = #?????????????? | | ???????# # #?????????????? | | ???????# # """ ]#?????????????? | | ???????# + """ #?????????????? | | ???????# # """ #?????????????? | | ???????# @ # #?????????????? | | ???????# ########?????????????? | | ???????# ???????????????????? | | ???????# ?????????????????? | | ???????# ???????????????? | | ???????#+#####+###a #?????????????? | | ??????????????????? #?????????????? | | ???????????????????? #?????????????? | | ???????????????????????????????????? | | ???????????????????????????????????? | | ???????????????????????????????????? | | ???????????????????????????????????? | | ???????????????????????????????????? | | ???????????????????????????????????? | | ???????????????????????????????????? | | ???????????????????????????????????? | | ???????????????????????????????????? | | ???????????????????????????????????? | | ???????????????????????????????????? | | ???????????????????????????????????? | | ???????????????????????????????????? | | ???????????????????????????????????? | | ???????????????????????????????????? | | ???????????????????????????????????? | | ???????????????????????????????????? | +----------------------------------------------------+ Best States ------------- Heat Dissipation 31 Energy Generation 12 Energy Capacity 265 Matter Stores 300 Matter Capacity 300 Sight Range 16 Terrain Scan Density 10 Propulsion Shielding 66 Evasion (%) 54 Targeting Accuracy 16 Recoil Reduction 1 Item Schematics ----------------- None Robot Schematics ------------------ None Fabricated ------------ Nothing Alien Tech Used ----------------- None Achievements -------------- None Challenges ------------ None Game ------ Seed DisruptorSurgeCutter Manual? 0 Play Time 00:13:07 Cumulative 116.1 hours Start 2019.11.10 @ 23:09:32 End 2019.11.11 @ 12:35:11 Sessions 3 Manual Loads 0 Difficulty Rogue Special Mode None Game No. 207 Rogue 207 Adventurer 0 Explorer 0 Win Type - Total 0 Types 0/0/0/0/0/0/0 Lore% 33 Gallery% 50 Achievement% 34 Wizard Run 0 Options --------- ASCII 0 Keyboard 0 Movement Mouse Keybinds 0 Fullscreen 1 Font 18/SmallcapsGlow Map View 76x50 Tactical HUD 1 Map Filters NONE Filters NONE Steam 1 RUN: 3e46d5e2-00f2-4b16-9fd5-cb3b9c68a1e3